fUST/lending_fUST_20240512
["ID","MTS","AMOUNT","RATE_DAILY","PERIOD"]
[326841496,1715505044728,-167.361754,0.00023562,2]
[326841497,1715505044738,-1235.85366966,0.000239,2]
[326841498,1715505044747,-166.666666,0.00023969,2]
[326841499,1715505044757,-166.666666,0.00024482,2]
[326841500,1715505044767,-400.28835833,0.00025,2]
[326841501,1715505044776,-167.10326178,0.00025,2]
[326841502,1715505044786,-186.94483115,0.00027,2]
[326841503,1715505044795,-263.937582,0.00027075,2]
[326841504,1715505044804,-221.20105551,0.00028,2]
[326841505,1715505044814,-1235.85366966,0.000289,2]
[326841506,1715505044825,-1000.0,0.000295,3]
[326841507,1715505044834,-23294.21654736,0.000298,3]
[326841508,1715505044844,-151.0,0.000298,2]
[326841509,1715505044853,-163.192593,0.000298,2]
[326841510,1715505044861,-163.192593,0.000298,2]
[326841511,1715505044871,-2000.0,0.000298,2]
[326841512,1715505044880,-151.0,0.000298,2]
[326841513,1715505044890,-151.0,0.000298,2]
[326841514,1715505044900,-151.0,0.000298,2]
[326841515,1715505044910,-151.0,0.000298,2]
[326841516,1715505044920,-862.229672,0.000298,2]
[326841517,1715505044929,-862.229672,0.000298,2]
[326841518,1715505044939,-151.0,0.000298,2]
[326841519,1715505044948,-1294.212203,0.000298,2]
[326841520,1715505044958,-1294.212203,0.000298,2]
[326841521,1715505044967,-151.84853098,0.0002984,2]
[326841522,1715505044976,-166.666666,0.00029863,2]
[326841523,1715505044984,-352.03009815,0.000299,2]
[326841524,1715505044994,-758.32735368,0.000299,2]
[326841525,1715505045004,-5255.15222086,0.000299,14]
[326841526,1715505045013,-285.88496521,0.000299,2]
[326841527,1715505045024,-151.0,0.000299,2]
[326841528,1715505045034,-151.0,0.000299,2]
[326841529,1715505045043,-151.0,0.000299,2]
[326841530,1715505045052,-151.0,0.000299,2]
[326841531,1715505045062,-151.0,0.000299,2]
[326841532,1715505045071,-151.0,0.000299,2]
[326841533,1715505045082,-151.0,0.000299,2]
[326841534,1715505045091,-151.0,0.000299,2]
[326841535,1715505045100,-151.0,0.000299,2]
[326841536,1715505045109,-151.0,0.000299,2]
[326841537,1715505045119,-215.139294,0.000299,2]
[326841538,1715505045127,-151.0,0.000299,2]
[326841539,1715505045138,-151.0,0.000299,2]
[326841540,1715505045148,-220.194724,0.000299,2]
[326841541,1715505045157,-220.194724,0.000299,2]
[326841542,1715505045167,-220.194724,0.000299,2]
[326841543,1715505045178,-220.194724,0.000299,2]
[326841544,1715505045188,-151.0,0.000299,2]
[326841545,1715505045197,-151.0,0.000299,2]
[326841546,1715505045206,-290.346641,0.000299,2]
[326841547,1715505045215,-290.346641,0.000299,2]
[326841548,1715505045226,-290.346641,0.000299,2]
[326841549,1715505045235,-290.346641,0.000299,2]
[326841550,1715505045244,-284.303342,0.000299,2]
[326841551,1715505045253,-177.310481,0.000299,2]
[326841552,1715505045262,-177.310481,0.000299,2]
[326841553,1715505045272,-177.310481,0.000299,2]
[326841554,1715505045281,-177.310481,0.000299,2]
[326841555,1715505045291,-838.403249,0.000299,2]
[326841556,1715505045300,-838.403249,0.000299,2]
[326841557,1715505045309,-151.0,0.000299,2]
[326841558,1715505045318,-151.0,0.000299,2]
[326841559,1715505045329,-838.403249,0.000299,2]
[326841560,1715505045338,-838.403249,0.000299,2]
[326841561,1715505045348,-151.0,0.000299,2]
[326841562,1715505045357,-151.0,0.000299,2]
[326841563,1715505045366,-151.0,0.000299,2]
[326841564,1715505045375,-151.0,0.000299,2]
[326841565,1715505045384,-151.0,0.000299,2]
[326841566,1715505045393,-151.0,0.000299,2]
[326841567,1715505045402,-151.0,0.000299,2]
[326841568,1715505045411,-151.0,0.000299,2]
[326841569,1715505045421,-417.90984734,0.00029968,2]
[326841570,1715505045432,-1006.08472962,0.00029984,2]
[326841571,1715505045443,-8411.0,0.0002999,2]
[326841572,1715505045453,-151.0,0.0002999,2]
[326841573,1715505045463,-163.192593,0.0002999,2]
[326841574,1715505045473,-163.192593,0.0002999,2]
[326841575,1715505045482,-151.0,0.0002999,2]
[326841576,1715505045491,-250.531482,0.0002999,2]
[326841577,1715505045501,-151.0,0.0002999,2]
[326841578,1715505045510,-151.0,0.0002999,2]
[326841579,1715505045519,-862.229672,0.0002999,2]
[326841580,1715505045528,-862.229672,0.0002999,2]
[326841581,1715505045537,-151.0,0.0002999,2]
[326841582,1715505045546,-1294.212203,0.0002999,2]
[326841583,1715505045555,-22946.7292147,0.0003,2]
[326841591,1715505046193,-1294.212203,0.0002999,2]
[326841592,1715505046203,-3225.77589505,0.0003,2]
[326841595,1715505270840,5000.0,0.0002,10]
[326841596,1715505289684,5141.688,0.0001702,2]
[326841597,1715505499377,13000.0,0.00017,3]
[326841598,1715505736869,157.22766132,9.999e-05,2]
[326841646,1715506232320,-2594.49494001,0.00017964,2]
[326841649,1715506232329,-784.32367455,0.00017965,2]
[326841654,1715506232347,-1099.12866882,0.00017965,2]
[326841657,1715506232356,-157.22766132,0.00017966,2]
[326841661,1715506232365,-6570.5228918,0.00018554,2]
[326841665,1715506232375,-240.66508783,0.00019,2]
[326841667,1715506232384,-3353.85051288,0.00019185,2]
[326841669,1715506232392,-150.0,0.00019666,2]
[326841671,1715506232402,-175.05153099,0.00019899,2]
[326841673,1715506232411,-175.05153097,0.00019899,2]
[326841675,1715506232421,-175.05153097,0.000199,2]
[326841677,1715506232431,-175.05153097,0.000199,2]
[326841679,1715506232440,-725.86,0.0001999,3]
[326841681,1715506232449,-362.93,0.0001999,3]
[326841683,1715506232459,-181.47,0.0001999,3]
[326841685,1715506232468,-544.41,0.0001999,3]
[326841687,1715506232478,-816.2716486,0.00019998,2]
[326841689,1715506232487,-3457.70192986,0.00019999,2]
[326841691,1715506232497,-500.0,0.00019999,2]
[326841693,1715506232506,-500.0,0.00019999,2]
[326841695,1715506232515,-500.0,0.00019999,2]
[326841697,1715506232523,-500.0,0.00019999,2]
[326841699,1715506232533,-500.0,0.00019999,2]
[326841701,1715506232542,-500.0,0.00019999,2]
[326841703,1715506232551,-500.0,0.00019999,2]
[326841705,1715506232560,-500.0,0.00019999,2]
[326841707,1715506232569,-500.0,0.00019999,2]
[326841709,1715506232578,-178.08071614,0.00019999,2]
[326841711,1715506232587,-500.0,0.00019999,2]
[326841713,1715506232596,-500.0,0.00019999,2]
[326841715,1715506232605,-500.0,0.00019999,2]
[326841717,1715506232614,-500.0,0.00019999,2]
[326841719,1715506232623,-500.0,0.00019999,2]
[326841721,1715506232632,-500.0,0.00019999,2]
[326841723,1715506232641,-500.0,0.00019999,2]
[326841725,1715506232650,-500.0,0.00019999,2]
[326841727,1715506232659,-500.0,0.00019999,2]
[326841729,1715506232668,-500.0,0.00019999,2]
[326841731,1715506232678,-500.0,0.00019999,2]
[326841733,1715506232687,-500.0,0.00019999,2]
[326841735,1715506232696,-500.0,0.00019999,2]
[326841737,1715506232705,-500.0,0.00019999,2]
[326841739,1715506232714,-500.0,0.00019999,2]
[326841741,1715506232723,-500.0,0.00019999,2]
[326841743,1715506232732,-500.0,0.00019999,2]
[326841745,1715506232741,-500.0,0.00019999,2]
[326841747,1715506232750,-500.0,0.00019999,2]
[326841749,1715506232759,-500.0,0.00019999,2]
[326841751,1715506232768,-554.39597612,0.00019999,2]
[326841753,1715506232777,-500.0,0.00019999,2]
[326841755,1715506232786,-500.0,0.00019999,2]
[326841757,1715506232795,-500.0,0.00019999,2]
[326841759,1715506232804,-651.44344934,0.00019999,2]
[326841761,1715506232813,-500.0,0.00019999,2]
[326841763,1715506232822,-500.0,0.00019999,2]
[326841765,1715506232831,-500.0,0.00019999,2]
[326841767,1715506232841,-500.0,0.00019999,2]
[326841782,1715506232985,-500.0,0.00019999,2]
[326841785,1715506232999,-500.0,0.00019999,2]
[326841787,1715506233008,-500.0,0.00019999,2]
[326841789,1715506233018,-500.0,0.00019999,2]
[326841790,1715506233029,-500.0,0.00019999,2]
[326841793,1715506233039,-500.0,0.00019999,2]
[326841795,1715506233048,-500.0,0.00019999,2]
[326841797,1715506233058,-500.0,0.00019999,2]
[326841798,1715506233068,-500.0,0.00019999,2]
[326841801,1715506233078,-500.0,0.00019999,2]
[326841802,1715506233087,-500.0,0.00019999,2]
[326841804,1715506233097,-500.0,0.00019999,2]
[326841807,1715506233107,-500.0,0.00019999,2]
[326841808,1715506233116,-500.0,0.00019999,2]
[326841810,1715506233126,-500.0,0.00019999,2]
[326841813,1715506233136,-500.0,0.00019999,2]
[326841814,1715506233145,-500.0,0.00019999,2]
[326841817,1715506233155,-500.0,0.00019999,2]
[326841819,1715506233164,-500.0,0.00019999,2]
[326841821,1715506233173,-500.0,0.00019999,2]
[326841823,1715506233183,-500.0,0.00019999,2]
[326841824,1715506233192,-500.0,0.00019999,2]
[326841827,1715506233201,-500.0,0.00019999,2]
[326841829,1715506233211,-500.0,0.00019999,2]
[326841831,1715506233220,-500.0,0.00019999,2]
[326841833,1715506233230,-500.0,0.00019999,2]
[326841834,1715506233239,-500.0,0.00019999,2]
[326841837,1715506233248,-500.0,0.00019999,2]
[326841839,1715506233257,-500.0,0.00019999,2]
[326841840,1715506233267,-500.0,0.00019999,2]
[326841843,1715506233276,-500.0,0.00019999,2]
[326841845,1715506233285,-500.0,0.00019999,2]
[326841847,1715506233295,-500.0,0.00019999,2]
[326841849,1715506233305,-500.0,0.00019999,2]
[326841850,1715506233314,-500.0,0.00019999,2]
[326841853,1715506233324,-500.0,0.00019999,2]
[326841854,1715506233334,-500.0,0.00019999,2]
[326841855,1715506233343,-500.0,0.00019999,2]
[326841856,1715506233353,-500.0,0.00019999,2]
[326841857,1715506233362,-500.0,0.00019999,2]
[326841858,1715506233372,-500.0,0.00019999,2]
[326841859,1715506233381,-500.0,0.00019999,2]
[326841860,1715506233389,-500.0,0.00019999,2]
[326841861,1715506233399,-279.20224621,0.00019999,2]
[326841863,1715506233407,-500.0,0.00019999,2]
[326841865,1715506233417,-500.0,0.00019999,2]
[326841867,1715506233427,-500.0,0.00019999,2]
[326841869,1715506233436,-500.0,0.00019999,2]
[326841871,1715506233445,-500.0,0.00019999,2]
[326841873,1715506233454,-426.46863903,0.00019999,2]
[326841875,1715506233463,-500.0,0.00019999,2]
[326841877,1715506233472,-500.0,0.00019999,2]
[326841879,1715506233482,-500.0,0.00019999,2]
[326841881,1715506233491,-500.0,0.00019999,2]
[326841883,1715506233500,-500.0,0.00019999,2]
[326841885,1715506233509,-500.0,0.00019999,2]
[326841886,1715506233519,-500.0,0.00019999,2]
[326841887,1715506233528,-500.0,0.00019999,2]
[326841888,1715506233537,-500.0,0.00019999,2]
[326841890,1715506233546,-500.0,0.00019999,2]
[326841892,1715506233555,-500.0,0.00019999,2]
[326841894,1715506233564,-375.46691623,0.00019999,2]
[326841896,1715506233573,-7147.75436691,0.0002,7]
[326841898,1715506233582,-115402.15601015,0.0002,2]
[326841900,1715506233592,-67521.8836984,0.0002,2]
[326841902,1715506233601,-154.76784823,0.0002,2]
[326841904,1715506233611,-155.10807159,0.0002,2]
[326841906,1715506233620,-2012.23413501,0.0002,2]
[326841908,1715506233629,-200.0,0.0002,2]
[326841910,1715506233638,-150.0,0.00020605,2]
[326841912,1715506233647,-2930.32388673,0.00020912,7]
[326841914,1715506233656,-894.51331095,0.00020912,2]
[326841916,1715506233665,-7029.76946206,0.00020912,2]
[326842028,1715506238209,-496.32197982,0.00019999,2]
[326842030,1715506238219,-344.4479476,0.00019999,2]
[326842032,1715506238228,-500.0,0.00019999,2]
[326842033,1715506238237,-500.0,0.00019999,2]
[326842034,1715506238247,-353.1658585,0.00019999,2]
[326842035,1715506238256,-500.0,0.00019999,2]
[326842036,1715506238266,-500.0,0.00019999,2]
[326842037,1715506238275,-500.0,0.00019999,2]
[326842038,1715506238285,-392.32480181,0.00019999,2]
[326842039,1715506238294,-500.0,0.00019999,2]
[326842040,1715506238302,-186.4534129,0.00019999,2]
[326842041,1715506238312,-500.0,0.00019999,2]
[326842042,1715506238322,-500.0,0.00019999,2]
[326842043,1715506238332,-416.32753497,0.00019999,2]
[326842044,1715506238370,-83.67246503,0.00019999,2]
[326842045,1715506238381,-239.04927215,0.00019999,2]
[326842047,1715506238390,-500.0,0.00019999,2]
[326842049,1715506238399,-605.43959761,0.00019999,2]
[326842051,1715506238409,-500.0,0.00019999,2]
[326842053,1715506238418,-500.0,0.00019999,2]
[326842055,1715506238428,-515.46691625,0.00019999,2]
[326842056,1715506238437,-36074.78331556,0.00020912,2]
[326842074,1715506240582,-2439.86570834,0.00020912,2]
[326842138,1715506246252,-1341.17628194,0.00020911,2]
[326842139,1715506246262,-16980.61660419,0.00020912,2]
[326842140,1715506246274,-151.0,0.00020912,2]
[326842141,1715506246285,-151.0,0.00020912,2]
[326842142,1715506246296,-176.155779,0.00020912,2]
[326842143,1715506246306,-176.155779,0.00020912,2]
[326842144,1715506246315,-151.0,0.00020912,2]
[326842145,1715506246324,-151.0,0.00020912,2]
[326842146,1715506246333,-151.0,0.00020912,2]
[326842147,1715506246342,-245.464254,0.00020912,2]
[326842148,1715506246351,-232.277312,0.00020912,2]
[326842149,1715506246360,-232.277312,0.00020912,2]
[326842150,1715506246370,-151.0,0.00020912,2]
[326842151,1715506246379,-151.0,0.00020912,2]
[326842152,1715506246392,-151.0,0.00020912,2]
[326842153,1715506246401,-151.0,0.00020912,2]
[326842154,1715506246411,-151.0,0.00020912,2]
[326842155,1715506246420,-685.8226,0.00020912,2]
[326842156,1715506246430,-685.8226,0.00020912,2]
[326842157,1715506246440,-151.0,0.00020912,2]
[326842158,1715506246449,-151.0,0.00020912,2]
[326842159,1715506246458,-151.0,0.00020912,2]
[326842160,1715506246468,-151.0,0.00020912,2]
[326842161,1715506246478,-204.298841,0.00020912,2]
[326842162,1715506246487,-281.190719,0.00020912,2]
[326842163,1715506246498,-151.0,0.00020912,2]
[326842164,1715506246507,-151.0,0.00020912,2]
[326842165,1715506246673,-151.0,0.00020912,2]
[326842166,1715506246685,-603.560771,0.00020912,2]
[326842167,1715506246696,-151.0,0.00020912,2]
[326842168,1715506246705,-603.560771,0.00020912,2]
[326842169,1715506246714,-905.948542,0.00020912,2]
[326842170,1715506246723,-905.948542,0.00020912,2]
[326842171,1715506246733,-606.9435024,0.00020913,2]
[326842172,1715506246742,-1451.72,0.0002136,3]
[326842173,1715506246751,-725.86,0.0002136,3]
[326842174,1715506246760,-362.94,0.0002136,3]
[326842175,1715506246769,-150.0,0.00021545,2]
[326842176,1715506246777,-225.0,0.00021918,2]
[326842177,1715506246786,-151.0,0.00021918,2]
[326842178,1715506246796,-166.666666,0.00021918,2]
[326842179,1715506246805,-225.0,0.00021918,2]
[326842180,1715506246814,-166.666666,0.00022431,2]
[326842181,1715506246823,-713.0309286,0.000225,2]
[326842182,1715506246833,-166.666666,0.00022944,2]
[326842183,1715506246842,-166.666666,0.00023456,2]
[326842184,1715506246851,-164.239022,0.00023562,2]
[326842185,1715506246866,-316.84993,0.00023562,2]
[326842186,1715506246875,-150.0,0.00023665,2]
[326842187,1715506246884,-166.666666,0.00023969,2]
[326842188,1715506246893,-166.666666,0.00024482,2]
[326842189,1715506246905,-400.28835833,0.00025,2]
[326842190,1715506246914,-167.10326178,0.00025,2]
[326842191,1715506246923,-186.94483115,0.00027,2]
[326842192,1715506246932,-221.20105551,0.00028,2]
[326842193,1715506246944,-10082.49441958,0.00029,4]
[326842194,1715506246953,-316.84993,0.00029531,2]
[326842195,1715506246963,-153.0,0.00029753,2]
[326842196,1715506246972,-153.0,0.00029753,2]
[326842197,1715506246981,-153.0,0.00029753,2]
[326842198,1715506246990,-153.0,0.00029753,2]
[326842199,1715506246999,-153.0,0.00029753,2]
[326842200,1715506247009,-306.0,0.00029781,2]
[326842201,1715506247018,-166.666666,0.00029863,2]
[326842202,1715506247027,-151.0,0.0002989,2]
[326842203,1715506247037,-260.347414,0.0002989,2]
[326842204,1715506247046,-176.155779,0.0002989,2]
[326842205,1715506247055,-176.155779,0.0002989,2]
[326842206,1715506247065,-151.0,0.0002989,2]
[326842207,1715506247074,-151.0,0.0002989,2]
[326842208,1715506247084,-173.197987,0.0002989,2]
[326842209,1715506247093,-151.0,0.0002989,2]
[326842210,1715506247102,-3973.75,0.0002999,3]
[326842211,1715506247111,-144560.93845539,0.0003,2]
[326842212,1715506247120,-3873.2884764,0.0003,2]
[326842213,1715506247129,-6933.01849963,0.0003,2]
[326842214,1715506247140,-472.97709924,0.0003,2]
[326842215,1715506247149,-1018.86592625,0.0003,4]
[326842216,1715506247160,-472.97709924,0.0003,2]
[326842217,1715506247169,-176.155779,0.0003,2]
[326842218,1715506247180,-176.155779,0.0003,2]
[326842219,1715506247189,-151.0,0.0003,2]
[326842220,1715506247199,-151.0,0.0003,2]
[326842221,1715506247209,-151.0,0.0003,2]
[326842222,1715506247218,-232.277312,0.0003,2]
[326842223,1715506247227,-232.277312,0.0003,2]
[326842224,1715506247238,-151.0,0.0003,2]
[326842225,1715506247248,-151.0,0.0003,2]
[326842226,1715506247258,-151.0,0.0003,2]
[326842227,1715506247267,-151.0,0.0003,2]
[326842228,1715506247277,-151.0,0.0003,2]
[326842229,1715506247289,-685.8226,0.0003,2]
[326842230,1715506247298,-685.8226,0.0003,2]
[326842231,1715506247307,-151.0,0.0003,2]
[326842232,1715506247316,-151.0,0.0003,2]
[326842233,1715506247326,-151.0,0.0003,2]
[326842234,1715506247335,-151.0,0.0003,2]
[326842235,1715506247345,-151.0,0.0003,2]
[326842236,1715506247354,-151.0,0.0003,2]
[326842237,1715506247365,-151.0,0.0003,2]
[326842238,1715506247375,-603.560771,0.0003,2]
[326842239,1715506247385,-151.0,0.0003,2]
[326842240,1715506247395,-603.560771,0.0003,2]
[326842241,1715506247404,-216.0,0.0003,2]
[326842242,1715506247414,-905.948542,0.0003,2]
[326842243,1715506247425,-905.948542,0.0003,2]
[326842244,1715506247434,-153.0,0.00030712,2]
[326842245,1715506247444,-153.0,0.00030712,2]
[326842246,1715506247455,-153.0,0.00030712,2]
[326842247,1715506247464,-180.0,0.00032,3]
[326842248,1715506247474,-176.155779,0.00032876,2]
[326842249,1715506247483,-176.155779,0.00032876,2]
[326842250,1715506247492,-176.155779,0.00032876,2]
[326842251,1715506247502,-176.155779,0.00032876,2]
[326842252,1715506247511,-212.348655,0.00032876,2]
[326842253,1715506247520,-151.0,0.00032876,2]
[326842254,1715506247529,-151.0,0.00032876,2]
[326842255,1715506247538,-232.277312,0.00032876,2]
[326842256,1715506247547,-232.277312,0.00032876,2]
[326842257,1715506247556,-151.0,0.00032876,2]
[326842258,1715506247567,-151.0,0.00032876,2]
[326842259,1715506247576,-151.0,0.00032876,2]
[326842260,1715506247586,-151.0,0.00032876,2]
[326842261,1715506247595,-151.0,0.00032876,2]
[326842262,1715506247604,-151.0,0.00032876,2]
[326842263,1715506247614,-151.0,0.00032876,2]
[326842264,1715506247624,-151.0,0.00032876,2]
[326842265,1715506247633,-685.8226,0.00032876,2]
[326842266,1715506247642,-685.8226,0.00032876,2]
[326842267,1715506247651,-685.8226,0.00032876,2]
[326842268,1715506247660,-685.8226,0.00032876,2]
[326842269,1715506247670,-151.0,0.00032876,2]
[326842270,1715506247687,-251.674222,0.00032876,2]
[326842271,1715506247701,-151.0,0.00032876,2]
[326842272,1715506247711,-151.0,0.00032876,2]
[326842273,1715506247721,-151.0,0.00032876,2]
[326842274,1715506247731,-151.0,0.00032876,2]
[326842275,1715506247741,-151.0,0.00032876,2]
[326842276,1715506247751,-151.0,0.00032876,2]
[326842277,1715506247760,-151.0,0.00032876,2]
[326842278,1715506247770,-151.0,0.00032876,2]
[326842279,1715506247779,-265.979877,0.00032876,2]
[326842280,1715506247789,-3281.38,0.00032876,5]
[326842281,1715506247799,-3281.38,0.00032876,5]
[326842282,1715506247808,-3281.38,0.00032876,5]
[326842283,1715506247819,-3281.38,0.00032876,5]
[326842284,1715506247829,-3281.38,0.00032876,5]
[326842285,1715506247840,-3281.38,0.00032876,5]
[326842286,1715506247850,-3281.38,0.00032876,5]
[326842287,1715506247862,-3281.38,0.00032876,5]
[326842288,1715506247872,-3281.38,0.00032876,5]
[326842289,1715506247882,-3281.38,0.00032876,5]
[326842290,1715506247893,-3281.38,0.00032876,5]
[326842291,1715506247904,-3281.38,0.00032876,5]
[326842292,1715506247913,-3281.38,0.00032876,5]
[326842293,1715506247923,-3281.38,0.00032876,5]
[326842294,1715506247936,-3281.38,0.00032876,5]
[326842295,1715506247947,-151.0,0.00032876,2]
[326842296,1715506247957,-151.0,0.00032876,2]
[326842297,1715506247967,-603.560771,0.00032876,2]
[326842298,1715506247976,-603.560771,0.00032876,2]
[326842299,1715506247987,-282.0,0.00032876,2]
[326842300,1715506247997,-603.560771,0.00032876,2]
[326842301,1715506248007,-603.560771,0.00032876,2]
[326842302,1715506248016,-905.948542,0.00032876,2]
[326842303,1715506248027,-905.948542,0.00032876,2]
[326842304,1715506248036,-905.948542,0.00032876,2]
[326842305,1715506248046,-905.948542,0.00032876,2]
[326842306,1715506248055,-216.0,0.00033,2]
[326842307,1715506248065,-216.0,0.00033,2]
[326842308,1715506248074,-151.0179077,0.0003304,7]
[326842309,1715506248083,-151.0,0.00033091,2]
[326842310,1715506248093,-151.0,0.00033091,2]
[326842311,1715506248102,-232.277312,0.00033091,2]
[326842312,1715506248111,-232.277312,0.00033091,2]
[326842313,1715506248121,-150.00367064,0.00033254,7]
[326842314,1715506248130,-173.26222542,0.00033255,7]
[326842315,1715506248140,-150.00367064,0.00033275,7]
[326842316,1715506248150,-1561.77419535,0.00033312,7]
[326842317,1715506248160,-1561.77419535,0.00033778,7]
[326842318,1715506248170,-1561.77419535,0.00033897,7]
[326842319,1715506248179,-153.15121778,0.00033899,7]
[326842320,1715506248189,-1690.16081839,0.00034,2]
[326842321,1715506248199,-151.0179077,0.00034071,7]
[326842322,1715506248208,-153.15121778,0.00034201,7]
[326842323,1715506248217,-748.12599098,0.00034326,7]
[326842324,1715506248227,-1561.77419535,0.00034376,7]
[326842325,1715506248236,-3281.38,0.00034594,5]
[326842326,1715506248246,-3281.38,0.00034595,5]
[326842327,1715506248255,-35667.6380685,0.00034596,2]
[326842328,1715506248264,-176.155779,0.00034596,2]
[326842329,1715506248274,-176.155779,0.00034596,2]
[326842330,1715506248283,-151.0,0.00034596,2]
[326842331,1715506248293,-151.0,0.00034596,2]
[326842332,1715506248302,-232.277312,0.00034596,2]
[326842333,1715506248311,-232.277312,0.00034596,2]
[326842334,1715506248321,-151.0,0.00034596,2]
[326842335,1715506248330,-151.0,0.00034596,2]
[326842336,1715506248339,-151.0,0.00034596,2]
[326842337,1715506248348,-151.0,0.00034596,2]
[326842338,1715506248357,-685.8226,0.00034596,2]
[326842339,1715506248367,-685.8226,0.00034596,2]
[326842340,1715506248376,-151.0,0.00034596,2]
[326842341,1715506248385,-151.0,0.00034596,2]
[326842342,1715506248394,-170.696304,0.00034596,2]
[326842343,1715506248403,-151.0,0.00034596,2]
[326842344,1715506248413,-151.0,0.00034596,2]
[326842345,1715506248422,-603.560771,0.00034596,2]
[326842346,1715506248431,-603.560771,0.00034596,2]
[326842347,1715506248440,-905.948542,0.00034596,2]
[326842348,1715506248449,-905.948542,0.00034596,2]
[326842349,1715506248458,-5089.5883297,0.000346,10]
[326842350,1715506248468,-1351.35157401,0.00034751,7]
[326842351,1715506248477,-1561.77419535,0.00034775,7]
[326842352,1715506248486,-1000.0,0.000348,3]
[326842353,1715506248496,-1561.77419535,0.00034867,7]
[326842354,1715506248505,-151.0179077,0.00034871,7]
[326842355,1715506248515,-301.0,0.000349,8]
[326842356,1715506248525,-3281.38,0.00034996,5]
[326842357,1715506248534,-176.155779,0.00034997,2]
[326842358,1715506248543,-176.155779,0.00034997,2]
[326842359,1715506248553,-151.0,0.00034997,2]
[326842360,1715506248562,-3281.38,0.00034997,5]
[326842361,1715506248572,-176.155779,0.00034998,2]
[326842362,1715506248581,-176.155779,0.00034998,2]
[326842363,1715506248590,-151.0,0.00034998,2]
[326842364,1715506248599,-250.760645,0.00034998,2]
[326842365,1715506248609,-232.277312,0.00034998,2]
[326842366,1715506248619,-232.277312,0.00034998,2]
[326842367,1715506248628,-151.0,0.00034998,2]
[326842368,1715506248637,-151.0,0.00034998,2]
[326842369,1715506248646,-151.0,0.00034998,2]
[326842370,1715506248656,-151.0,0.00034998,2]
[326842371,1715506248665,-151.0,0.00034998,2]
[326842372,1715506248675,-151.0,0.00034998,2]
[326842373,1715506248684,-151.0,0.00034998,2]
[326842374,1715506248693,-151.0,0.00034998,2]
[326842375,1715506248702,-151.0,0.00034998,2]
[326842376,1715506248711,-190.013424,0.00034998,2]
[326842377,1715506248720,-685.8226,0.00034998,2]
[326842378,1715506248729,-685.8226,0.00034998,2]
[326842379,1715506248739,-685.8226,0.00034998,2]
[326842380,1715506248748,-685.8226,0.00034998,2]
[326842381,1715506248757,-685.8226,0.00034998,2]
[326842382,1715506248766,-685.8226,0.00034998,2]
[326842383,1715506248776,-174.636664,0.00034998,2]
[326842384,1715506248785,-151.0,0.00034998,2]
[326842385,1715506248794,-151.0,0.00034998,2]
[326842386,1715506248804,-151.0,0.00034998,2]
[326842387,1715506248813,-151.0,0.00034998,2]
[326842388,1715506248823,-151.0,0.00034998,2]
[326842389,1715506248832,-3281.38,0.00034998,5]
[326842390,1715506248841,-3281.38,0.00034998,5]